[Event "Titled Tuesday Blitz May 2 Early 2023"]
[White "Fedoseev, Vladimir"]
[Black "Simonian, Hrair"]
[WhiteFideId "24130737"]
[BlackFideId "13302337"]
[WhiteElo "2752"]
[BlackElo "2447"]
[Result "1-0"]
[Round "02"]
[TimeControl "180+2"]
[Date "2023.05.02"]
[WhiteClock "0:00:08"]
[BlackClock "0:00:05"]

1. e4 {[%clk 0:02:59]}  c5 {[%clk 0:03:00]} 2. Nf3 {[%clk 0:02:59]}  e6 {[%clk 0:03:01]} 3. c3 {[%clk 0:02:58]}  d5 {[%clk 0:02:59]} 4. exd5 {[%clk 0:02:56]}  exd5 {[%clk 0:03:00]} 5. d4 {[%clk 0:02:56]}  Nf6 {[%clk 0:03:00]} 6. Bb5+ {[%clk 0:02:56]}  Bd7 {[%clk 0:03:00]} 7. Bxd7+ {[%clk 0:02:56]}  Nbxd7 {[%clk 0:03:00]} 8. O-O {[%clk 0:02:56]}  Be7 {[%clk 0:03:01]} 9. dxc5 {[%clk 0:02:53]}  Nxc5 {[%clk 0:03:02]} 10. Be3 {[%clk 0:02:53]}  O-O {[%clk 0:03:02]} 11. Nbd2 {[%clk 0:02:53]}  Nce4 {[%clk 0:02:56]} 12. Qc2 {[%clk 0:02:49]}  Qc7 {[%clk 0:02:49]} 13. Rad1 {[%clk 0:02:46]}  Rfd8 {[%clk 0:02:48]} 14. Bd4 {[%clk 0:02:45]}  b6 {[%clk 0:02:36]} 15. Rfe1 {[%clk 0:02:43]}  Rac8 {[%clk 0:02:24]} 16. h3 {[%clk 0:02:39]}  Bc5 {[%clk 0:02:17]} 17. Nb3 {[%clk 0:02:25]}  Bd6 {[%clk 0:02:06]} 18. Re2 {[%clk 0:02:02]}  Nh5 {[%clk 0:01:47]} 19. Be3 {[%clk 0:02:02]}  Bf4 {[%clk 0:01:32]} 20. Nbd4 {[%clk 0:01:55]}  Bxe3 {[%clk 0:01:21]} 21. Rxe3 {[%clk 0:01:55]}  Nf4 {[%clk 0:01:21]} 22. Nd2 {[%clk 0:01:46]}  Nc5 {[%clk 0:01:11]} 23. Rde1 {[%clk 0:01:44]}  g6 {[%clk 0:01:07]} 24. Re7 {[%clk 0:01:13]}  Rd7 {[%clk 0:01:06]} 25. Re8+ {[%clk 0:01:10]}  Rxe8 {[%clk 0:01:06]} 26. Rxe8+ {[%clk 0:01:11]}  Kg7 {[%clk 0:01:07]} 27. N2f3 {[%clk 0:01:00]}  Re7 {[%clk 0:01:04]} 28. Rxe7 {[%clk 0:00:54]}  Qxe7 {[%clk 0:01:05]} 29. h4 {[%clk 0:00:44]}  h5 {[%clk 0:00:37]} 30. g3 {[%clk 0:00:41]}  Nfe6 {[%clk 0:00:38]} 31. Qe2 {[%clk 0:00:39]}  Qf6 {[%clk 0:00:37]} 32. Nxe6+ {[%clk 0:00:35]}  fxe6 {[%clk 0:00:34]} 33. Ng5 {[%clk 0:00:30]}  Qf5 {[%clk 0:00:27]} 34. b4 {[%clk 0:00:29]}  Ne4 {[%clk 0:00:26]} 35. Nxe4 {[%clk 0:00:29]}  dxe4 {[%clk 0:00:27]} 36. c4 {[%clk 0:00:27]}  Qe5 {[%clk 0:00:25]} 37. Kg2 {[%clk 0:00:22]}  Qd4 {[%clk 0:00:24]} 38. a3 {[%clk 0:00:21]}  Kf6 {[%clk 0:00:23]} 39. Qc2 {[%clk 0:00:16]}  Qd3 {[%clk 0:00:22]} 40. Qxd3 {[%clk 0:00:07]}  exd3 {[%clk 0:00:22]} 41. Kf3 {[%clk 0:00:08]}  e5 {[%clk 0:00:23]} 42. Ke3 {[%clk 0:00:08]}  e4 {[%clk 0:00:24]} 43. f3 {[%clk 0:00:09]}  exf3 {[%clk 0:00:24]} 44. Kxf3 {[%clk 0:00:08]}  Kf5 {[%clk 0:00:18]} 45. Ke3 {[%clk 0:00:08]}  Kg4 {[%clk 0:00:06]} 46. c5 {[%clk 0:00:08]}  bxc5 {[%clk 0:00:06]} 47. bxc5 {[%clk 0:00:08]}  Kxg3 {[%clk 0:00:06]} 48. c6 {[%clk 0:00:09]}  g5 {[%clk 0:00:05]} 49. hxg5 {[%clk 0:00:08]} 1-0


[Site "https://www.chess.com"]

[Event "Titled Tuesday Blitz May 2 Early 2023"]
[White "Shyaamnikhil P"]
[Black "Firouzja, Alireza"]
[WhiteFideId "5024218"]
[BlackFideId "12573981"]
[WhiteElo "2389"]
[BlackElo "2904"]
[Result "0-1"]
[Round "02"]
[TimeControl "180+2"]
[Date "2023.05.02"]
[WhiteClock "0:00:06"]
[BlackClock "0:01:55"]

1. e4 {[%clk 0:03:00]}  c5 {[%clk 0:02:57]} 2. Nf3 {[%clk 0:03:00]}  e6 {[%clk 0:02:56]} 3. c3 {[%clk 0:02:59]}  Nf6 {[%clk 0:02:55]} 4. e5 {[%clk 0:03:00]}  Nd5 {[%clk 0:02:56]} 5. Bc4 {[%clk 0:02:59]}  Nb6 {[%clk 0:02:54]} 6. Bb3 {[%clk 0:02:59]}  d5 {[%clk 0:02:53]} 7. d4 {[%clk 0:02:58]}  Nc6 {[%clk 0:02:54]} 8. O-O {[%clk 0:02:57]}  Bd7 {[%clk 0:02:54]} 9. Nbd2 {[%clk 0:02:45]}  Rc8 {[%clk 0:02:54]} 10. a3 {[%clk 0:02:43]}  Qc7 {[%clk 0:02:53]} 11. Ba2 {[%clk 0:02:42]}  cxd4 {[%clk 0:02:51]} 12. cxd4 {[%clk 0:02:42]}  Na5 {[%clk 0:02:52]} 13. b4 {[%clk 0:02:34]}  Ba4 {[%clk 0:02:52]} 14. Qe2 {[%clk 0:02:31]}  Nac4 {[%clk 0:02:50]} 15. Nb3 {[%clk 0:02:16]}  Bb5 {[%clk 0:02:50]} 16. Qd1 {[%clk 0:02:09]}  Na4 {[%clk 0:02:50]} 17. Re1 {[%clk 0:02:00]}  Nc3 {[%clk 0:02:50]} 18. Qc2 {[%clk 0:02:00]}  Nxa2 {[%clk 0:02:48]} 19. Qxa2 {[%clk 0:02:01]}  b6 {[%clk 0:02:44]} 20. Bf4 {[%clk 0:01:22]}  Be7 {[%clk 0:02:43]} 21. Rac1 {[%clk 0:01:21]}  O-O {[%clk 0:02:43]} 22. Bg5 {[%clk 0:01:21]}  Bxg5 {[%clk 0:02:43]} 23. Nxg5 {[%clk 0:01:22]}  h6 {[%clk 0:02:43]} 24. Nh3 {[%clk 0:01:19]}  Qe7 {[%clk 0:02:43]} 25. Rc3 {[%clk 0:01:12]}  Rc7 {[%clk 0:02:42]} 26. Rg3 {[%clk 0:01:07]}  Qh4 {[%clk 0:02:42]} 27. a4 {[%clk 0:01:01]}  Bd7 {[%clk 0:02:42]} 28. b5 {[%clk 0:01:02]}  f5 {[%clk 0:02:40]} 29. f4 {[%clk 0:00:50]}  Be8 {[%clk 0:02:39]} 30. Qf2 {[%clk 0:00:49]}  Kh8 {[%clk 0:02:37]} 31. Nd2 {[%clk 0:00:44]}  Nxd2 {[%clk 0:02:37]} 32. Qxd2 {[%clk 0:00:45]}  Bh5 {[%clk 0:02:37]} 33. Rc3 {[%clk 0:00:43]}  Rxc3 {[%clk 0:02:29]} 34. Qxc3 {[%clk 0:00:44]}  Kh7 {[%clk 0:02:30]} 35. Rc1 {[%clk 0:00:41]}  Be2 {[%clk 0:02:29]} 36. Qb4 {[%clk 0:00:19]}  Rf7 {[%clk 0:02:24]} 37. Rc8 {[%clk 0:00:19]}  Qg4 {[%clk 0:02:17]} 38. Qd2 {[%clk 0:00:17]}  Bf3 {[%clk 0:02:17]} 39. Kf1 {[%clk 0:00:14]}  Be4 {[%clk 0:02:16]} 40. Ng1 {[%clk 0:00:14]}  Qh4 {[%clk 0:02:16]} 41. h3 {[%clk 0:00:13]}  Qe7 {[%clk 0:02:12]} 42. Ne2 {[%clk 0:00:13]}  Qa3 {[%clk 0:02:12]} 43. Nc3 {[%clk 0:00:12]}  Qa1+ {[%clk 0:01:57]} 44. Kf2 {[%clk 0:00:13]}  Qh1 {[%clk 0:01:57]} 45. Kg3 {[%clk 0:00:13]}  g5 {[%clk 0:01:57]} 46. Nxe4 {[%clk 0:00:12]}  gxf4+ {[%clk 0:01:54]} 47. Qxf4 {[%clk 0:00:11]}  Rg7+ {[%clk 0:01:54]} 48. Kh4 {[%clk 0:00:11]}  dxe4 {[%clk 0:01:54]} 49. g3 {[%clk 0:00:06]}  Rg4+ {[%clk 0:01:55]} 0-1


[Site "https://www.chess.com"]

[Event "Titled Tuesday Blitz May 2 Early 2023"]
[White "Girish, A. Koushik"]
[Black "Bluebaum, Matthias"]
[WhiteFideId "5038448"]
[BlackFideId "24651516"]
[WhiteElo "2398"]
[BlackElo "2638"]
[Result "0-1"]
[Round "02"]
[TimeControl "180+2"]
[Date "2023.05.02"]
[WhiteClock "0:00:10"]
[BlackClock "0:00:43"]

1. d4 {[%clk 0:03:00]}  d5 {[%clk 0:03:00]} 2. Nf3 {[%clk 0:03:00]}  e6 {[%clk 0:03:00]} 3. c4 {[%clk 0:03:00]}  Nf6 {[%clk 0:03:00]} 4. Nc3 {[%clk 0:03:00]}  Bb4 {[%clk 0:03:01]} 5. Qa4+ {[%clk 0:02:52]}  Nc6 {[%clk 0:03:00]} 6. e3 {[%clk 0:02:52]}  O-O {[%clk 0:03:00]} 7. Bd2 {[%clk 0:02:51]}  Qe8 {[%clk 0:03:01]} 8. Qc2 {[%clk 0:02:47]}  dxc4 {[%clk 0:03:01]} 9. Bxc4 {[%clk 0:02:46]}  e5 {[%clk 0:03:02]} 10. a3 {[%clk 0:02:12]}  Bd6 {[%clk 0:02:53]} 11. d5 {[%clk 0:02:00]}  e4 {[%clk 0:02:52]} 12. dxc6 {[%clk 0:01:56]}  exf3 {[%clk 0:02:52]} 13. gxf3 {[%clk 0:01:55]}  Qxc6 {[%clk 0:02:52]} 14. Be2 {[%clk 0:01:54]}  Be6 {[%clk 0:02:30]} 15. h4 {[%clk 0:01:47]}  Rad8 {[%clk 0:02:25]} 16. O-O-O {[%clk 0:01:45]}  Qb6 {[%clk 0:02:04]} 17. Na4 {[%clk 0:01:18]}  Qb3 {[%clk 0:02:03]} 18. Rhg1 {[%clk 0:01:14]}  b5 {[%clk 0:01:55]} 19. Bc3 {[%clk 0:00:39]}  Nh5 {[%clk 0:01:50]} 20. f4 {[%clk 0:00:31]}  Qxc2+ {[%clk 0:01:27]} 21. Kxc2 {[%clk 0:00:32]}  bxa4 {[%clk 0:01:28]} 22. Bxh5 {[%clk 0:00:31]}  f6 {[%clk 0:01:28]} 23. Kc1 {[%clk 0:00:29]}  Bb3 {[%clk 0:01:24]} 24. Rd2 {[%clk 0:00:26]}  Be7 {[%clk 0:01:24]} 25. Bd1 {[%clk 0:00:21]}  Rxd2 {[%clk 0:01:18]} 26. Bxd2 {[%clk 0:00:22]}  Rd8 {[%clk 0:01:18]} 27. f5 {[%clk 0:00:18]}  Rd6 {[%clk 0:01:15]} 28. Bxb3+ {[%clk 0:00:17]}  axb3 {[%clk 0:01:15]} 29. e4 {[%clk 0:00:18]}  Rc6+ {[%clk 0:01:15]} 30. Bc3 {[%clk 0:00:17]}  Bxa3 {[%clk 0:01:16]} 31. Kd2 {[%clk 0:00:17]}  Rd6+ {[%clk 0:01:16]} 32. Ke2 {[%clk 0:00:17]}  Bc5 {[%clk 0:01:14]} 33. Ra1 {[%clk 0:00:17]}  Bd4 {[%clk 0:01:06]} 34. Bxd4 {[%clk 0:00:16]}  Rxd4 {[%clk 0:01:06]} 35. Ke3 {[%clk 0:00:16]}  c5 {[%clk 0:00:47]} 36. Rxa7 {[%clk 0:00:16]}  Rd1 {[%clk 0:00:48]} 37. Rb7 {[%clk 0:00:15]}  c4 {[%clk 0:00:48]} 38. Rc7 {[%clk 0:00:16]}  Rc1 {[%clk 0:00:44]} 39. f4 {[%clk 0:00:16]}  c3 {[%clk 0:00:42]} 40. Rb7 {[%clk 0:00:11]}  cxb2 {[%clk 0:00:42]} 41. Rxb3 {[%clk 0:00:10]}  b1=Q {[%clk 0:00:43]} 0-1


[Site "https://www.chess.com"]

[Event "Titled Tuesday Blitz May 2 Early 2023"]
[White "Martinez Alcantara, Jose Eduardo"]
[Black "Golichenko, Ilija"]
[WhiteFideId "3805662"]
[BlackFideId "14117223"]
[WhiteElo "2711"]
[BlackElo "2339"]
[Result "1-0"]
[Round "02"]
[TimeControl "180+2"]
[Date "2023.05.02"]
[WhiteClock "0:00:48"]
[BlackClock "0:00:05"]

1. e4 {[%clk 0:03:00]}  Nf6 {[%clk 0:02:58]} 2. e5 {[%clk 0:03:00]}  Nd5 {[%clk 0:02:58]} 3. Nc3 {[%clk 0:03:01]}  e6 {[%clk 0:02:58]} 4. Nf3 {[%clk 0:03:01]}  d6 {[%clk 0:02:57]} 5. d4 {[%clk 0:03:00]}  c5 {[%clk 0:02:55]} 6. exd6 {[%clk 0:02:56]}  Nxc3 {[%clk 0:02:52]} 7. bxc3 {[%clk 0:02:56]}  Bxd6 {[%clk 0:02:52]} 8. Bd3 {[%clk 0:02:57]}  h6 {[%clk 0:02:49]} 9. Qe2 {[%clk 0:02:54]}  O-O {[%clk 0:02:38]} 10. O-O {[%clk 0:02:49]}  Nc6 {[%clk 0:02:37]} 11. Qe4 {[%clk 0:02:46]}  f5 {[%clk 0:02:36]} 12. Qe2 {[%clk 0:02:46]}  Qf6 {[%clk 0:02:27]} 13. Be3 {[%clk 0:02:36]}  f4 {[%clk 0:02:17]} 14. dxc5 {[%clk 0:02:34]}  Bc7 {[%clk 0:02:05]} 15. Bd2 {[%clk 0:02:33]}  e5 {[%clk 0:02:04]} 16. Rab1 {[%clk 0:02:32]}  Rb8 {[%clk 0:01:58]} 17. h3 {[%clk 0:02:15]}  Bf5 {[%clk 0:01:45]} 18. Rfe1 {[%clk 0:02:14]}  Rfd8 {[%clk 0:01:39]} 19. Be4 {[%clk 0:02:12]}  Qf7 {[%clk 0:01:16]} 20. a4 {[%clk 0:02:02]}  Bxe4 {[%clk 0:01:12]} 21. Qxe4 {[%clk 0:02:03]}  Qd5 {[%clk 0:01:12]} 22. c4 {[%clk 0:01:53]}  Qxc5 {[%clk 0:01:03]} 23. Rb5 {[%clk 0:01:48]}  Qa3 {[%clk 0:00:52]} 24. Reb1 {[%clk 0:01:28]}  Bb6 {[%clk 0:00:34]} 25. c5 {[%clk 0:01:08]}  Bc7 {[%clk 0:00:22]} 26. Qc4+ {[%clk 0:01:09]}  Kh7 {[%clk 0:00:19]} 27. Bc3 {[%clk 0:01:08]}  Nd4 {[%clk 0:00:12]} 28. Bxd4 {[%clk 0:00:58]}  exd4 {[%clk 0:00:11]} 29. Nxd4 {[%clk 0:00:51]}  Be5 {[%clk 0:00:06]} 30. Nf3 {[%clk 0:00:48]}  Qd3 {[%clk 0:00:05]} 31. cxd3 {[%clk 0:00:48]} 1-0


[Site "https://www.chess.com"]

[Event "Titled Tuesday Blitz May 2 Early 2023"]
[White "Bruedigam, Martin"]
[Black "Duda, Jan-Krzysztof"]
[WhiteFideId "24608033"]
[BlackFideId "1170546"]
[WhiteElo "2331"]
[BlackElo "2790"]
[Result "0-1"]
[Round "02"]
[TimeControl "180+2"]
[Date "2023.05.02"]
[WhiteClock "0:00:13"]
[BlackClock "0:00:21"]

1. d4 {[%clk 0:03:00]}  g6 {[%clk 0:02:58]} 2. e4 {[%clk 0:02:59]}  Bg7 {[%clk 0:02:58]} 3. Nf3 {[%clk 0:03:00]}  d6 {[%clk 0:02:54]} 4. Bc4 {[%clk 0:03:00]}  e6 {[%clk 0:02:52]} 5. Bb3 {[%clk 0:02:59]}  Ne7 {[%clk 0:02:52]} 6. c3 {[%clk 0:02:58]}  Nd7 {[%clk 0:02:50]} 7. O-O {[%clk 0:02:58]}  b6 {[%clk 0:02:49]} 8. h3 {[%clk 0:02:57]}  Bb7 {[%clk 0:02:49]} 9. Re1 {[%clk 0:02:58]}  a6 {[%clk 0:02:49]} 10. Bf4 {[%clk 0:02:57]}  h6 {[%clk 0:02:48]} 11. Nbd2 {[%clk 0:02:58]}  g5 {[%clk 0:02:32]} 12. Bh2 {[%clk 0:02:57]}  Ng6 {[%clk 0:02:33]} 13. e5 {[%clk 0:02:38]}  dxe5 {[%clk 0:02:27]} 14. dxe5 {[%clk 0:02:38]}  Nc5 {[%clk 0:02:25]} 15. Bc2 {[%clk 0:02:35]}  Nd3 {[%clk 0:02:14]} 16. Re3 {[%clk 0:02:28]}  Ndf4 {[%clk 0:02:05]} 17. Bxf4 {[%clk 0:02:18]}  Nxf4 {[%clk 0:02:02]} 18. Be4 {[%clk 0:02:14]}  Nd5 {[%clk 0:01:54]} 19. Rd3 {[%clk 0:02:10]}  Qc8 {[%clk 0:01:45]} 20. g3 {[%clk 0:01:25]}  b5 {[%clk 0:01:31]} 21. Qe2 {[%clk 0:01:19]}  c5 {[%clk 0:01:26]} 22. c4 {[%clk 0:01:17]}  Nb4 {[%clk 0:01:25]} 23. Bxb7 {[%clk 0:00:56]}  Qxb7 {[%clk 0:01:26]} 24. Ne4 {[%clk 0:00:56]}  O-O {[%clk 0:01:27]} 25. Nd6 {[%clk 0:00:48]}  Qe7 {[%clk 0:01:18]} 26. Rd2 {[%clk 0:00:47]}  f5 {[%clk 0:00:49]} 27. a3 {[%clk 0:00:39]}  Nc6 {[%clk 0:00:47]} 28. cxb5 {[%clk 0:00:39]}  axb5 {[%clk 0:00:47]} 29. Qxb5 {[%clk 0:00:39]}  Nxe5 {[%clk 0:00:44]} 30. Nxe5 {[%clk 0:00:33]}  Bxe5 {[%clk 0:00:45]} 31. Qxc5 {[%clk 0:00:25]}  Bg7 {[%clk 0:00:35]} 32. Re1 {[%clk 0:00:19]}  Ra6 {[%clk 0:00:32]} 33. b4 {[%clk 0:00:16]}  Rxa3 {[%clk 0:00:30]} 34. b5 {[%clk 0:00:16]}  Rc3 {[%clk 0:00:25]} 35. Qe3 {[%clk 0:00:14]}  Rxe3 {[%clk 0:00:24]} 36. Rxe3 {[%clk 0:00:13]}  f4 {[%clk 0:00:21]} 0-1


[Site "https://www.chess.com"]

[Event "Titled Tuesday Blitz May 2 Early 2023"]
[White "Sarana, Alexey"]
[Black "Malek, Jan"]
[WhiteFideId "24133795"]
[BlackFideId "21864080"]
[WhiteElo "2714"]
[BlackElo "2255"]
[Result "1-0"]
[Round "02"]
[TimeControl "180+2"]
[Date "2023.05.02"]
[WhiteClock "0:00:00"]
[BlackClock "0:00:00"]

1. d4 {[%clk 0:00:01]}  d5 {[%clk 0:00:01]} 2. c4 {[%clk 0:00:01]}  e6 {[%clk 0:00:01]} 3. Nc3 {[%clk 0:00:01]}  Nf6 {[%clk 0:00:01]} 4. cxd5 {[%clk 0:00:01]}  exd5 {[%clk 0:00:01]} 5. Bg5 {[%clk 0:00:01]}  Be7 {[%clk 0:00:01]} 6. e3 {[%clk 0:00:01]}  h6 {[%clk 0:00:01]} 7. Bf4 {[%clk 0:00:01]}  c6 {[%clk 0:00:01]} 8. Bd3 {[%clk 0:00:01]}  O-O {[%clk 0:00:01]} 9. h3 {[%clk 0:00:01]}  Bd6 {[%clk 0:00:01]} 10. Bxd6 {[%clk 0:00:01]}  Qxd6 {[%clk 0:00:01]} 11. Nf3 {[%clk 0:00:01]}  Re8 {[%clk 0:00:01]} 12. Qc2 {[%clk 0:00:01]}  Nbd7 {[%clk 0:00:01]} 13. O-O {[%clk 0:00:01]}  a5 {[%clk 0:00:01]} 14. a3 {[%clk 0:00:01]}  Qe7 {[%clk 0:00:01]} 15. Rab1 {[%clk 0:00:01]}  Ne4 {[%clk 0:00:01]} 16. Bxe4 {[%clk 0:00:01]}  dxe4 {[%clk 0:00:01]} 17. Nd2 {[%clk 0:00:01]}  Nf6 {[%clk 0:00:01]} 18. Na4 {[%clk 0:00:01]}  Bf5 {[%clk 0:00:01]} 19. Qc5 {[%clk 0:00:01]}  Qe6 {[%clk 0:00:01]} 20. Kh2 {[%clk 0:00:01]}  Nd7 {[%clk 0:00:01]} 21. Qc2 {[%clk 0:00:01]}  Qd6+ {[%clk 0:00:01]} 22. Kh1 {[%clk 0:00:01]}  h5 {[%clk 0:00:01]} 23. f4 {[%clk 0:00:01]}  b5 {[%clk 0:00:00]} 24. Nc3 {[%clk 0:00:01]}  Nf6 {[%clk 0:00:00]} 25. Rbc1 {[%clk 0:00:01]}  Ra6 {[%clk 0:00:00]} 26. Nb3 {[%clk 0:00:01]}  Nd7 {[%clk 0:00:00]} 27. Ne2 {[%clk 0:00:01]}  Be6 {[%clk 0:00:00]} 28. Nc5 {[%clk 0:00:00]}  Nxc5 {[%clk 0:00:00]} 29. Qxc5 {[%clk 0:00:00]}  Qxc5 {[%clk 0:00:00]} 30. Rxc5 {[%clk 0:00:00]}  Bc4 {[%clk 0:00:00]} 31. Re1 {[%clk 0:00:00]}  g6 {[%clk 0:00:00]} 32. f5 {[%clk 0:00:00]}  Kg7 {[%clk 0:00:00]} 33. Nf4 {[%clk 0:00:00]}  Bb3 {[%clk 0:00:00]} 34. Rec1 {[%clk 0:00:00]}  Bc4 {[%clk 0:00:00]} 35. fxg6 {[%clk 0:00:00]}  fxg6 {[%clk 0:00:00]} 36. Rg5 {[%clk 0:00:00]}  Bf7 {[%clk 0:00:00]} 37. Rcc5 {[%clk 0:00:00]}  Kh6 {[%clk 0:00:00]} 38. h4 {[%clk 0:00:00]}  b4 {[%clk 0:00:00]} 39. a4 {[%clk 0:00:00]}  b3 {[%clk 0:00:00]} 40. Kh2 {[%clk 0:00:00]}  Rb6 {[%clk 0:00:00]} 41. Rxa5 {[%clk 0:00:00]}  Rb4 {[%clk 0:00:00]} 42. Ra7 {[%clk 0:00:00]}  Rf8 {[%clk 0:00:00]} 43. Rc5 {[%clk 0:00:00]}  Rc4 {[%clk 0:00:00]} 44. Rxf7 {[%clk 0:00:00]} 1-0


[Site "https://www.chess.com"]

[Event "Titled Tuesday Blitz May 2 Early 2023"]
[White "Nguyen, Ngoc Truong Son"]
[Black "Baskin, Robert"]
[WhiteFideId "12401110"]
[BlackFideId "24662402"]
[WhiteElo "2556"]
[BlackElo "2472"]
[Result "0-1"]
[Round "02"]
[TimeControl "180+2"]
[Date "2023.05.02"]
[WhiteClock "0:00:03"]
[BlackClock "0:00:01"]

1. b3 {[%clk 0:02:57]}  Nf6 {[%clk 0:02:59]} 2. Bb2 {[%clk 0:02:56]}  g6 {[%clk 0:02:59]} 3. g3 {[%clk 0:02:56]}  Bg7 {[%clk 0:02:58]} 4. Bg2 {[%clk 0:02:57]}  d5 {[%clk 0:02:57]} 5. Nf3 {[%clk 0:02:56]}  c5 {[%clk 0:02:57]} 6. O-O {[%clk 0:02:54]}  O-O {[%clk 0:02:56]} 7. c4 {[%clk 0:02:55]}  d4 {[%clk 0:02:56]} 8. e3 {[%clk 0:02:55]}  Nc6 {[%clk 0:02:54]} 9. exd4 {[%clk 0:02:55]}  cxd4 {[%clk 0:02:54]} 10. d3 {[%clk 0:02:55]}  Re8 {[%clk 0:02:51]} 11. a3 {[%clk 0:02:53]}  a5 {[%clk 0:02:50]} 12. Nbd2 {[%clk 0:02:53]}  Nd7 {[%clk 0:02:34]} 13. Ne1 {[%clk 0:02:33]}  e5 {[%clk 0:02:14]} 14. Ne4 {[%clk 0:02:16]}  Qc7 {[%clk 0:02:11]} 15. c5 {[%clk 0:02:14]}  Bf8 {[%clk 0:01:53]} 16. Rc1 {[%clk 0:02:13]}  f5 {[%clk 0:01:45]} 17. Ng5 {[%clk 0:02:09]}  Nxc5 {[%clk 0:01:40]} 18. Bd5+ {[%clk 0:01:56]}  Ne6 {[%clk 0:01:30]} 19. f4 {[%clk 0:01:52]}  h6 {[%clk 0:01:26]} 20. Ngf3 {[%clk 0:01:43]}  exf4 {[%clk 0:01:26]} 21. Nh4 {[%clk 0:01:36]}  Kh7 {[%clk 0:01:22]} 22. Neg2 {[%clk 0:01:29]}  fxg3 {[%clk 0:01:16]} 23. Nxg6 {[%clk 0:01:26]}  gxh2+ {[%clk 0:00:17]} 24. Kh1 {[%clk 0:01:25]}  Bd6 {[%clk 0:00:17]} 25. N6h4 {[%clk 0:01:15]}  Ng7 {[%clk 0:00:17]} 26. Bxd4 {[%clk 0:01:11]}  Qe7 {[%clk 0:00:10]} 27. Bxg7 {[%clk 0:01:02]}  Qxg7 {[%clk 0:00:09]} 28. Qh5 {[%clk 0:00:59]}  Re5 {[%clk 0:00:04]} 29. Bxc6 {[%clk 0:00:31]}  bxc6 {[%clk 0:00:04]} 30. d4 {[%clk 0:00:27]}  Rd5 {[%clk 0:00:04]} 31. Ne3 {[%clk 0:00:22]}  Be6 {[%clk 0:00:01]} 32. Nexf5 {[%clk 0:00:20]}  Rxf5 {[%clk 0:00:01]} 33. Rxf5 {[%clk 0:00:17]}  Rg8 {[%clk 0:00:01]} 34. Rff1 {[%clk 0:00:03]}  Bd5+ {[%clk 0:00:01]} 0-1


[Site "https://www.chess.com"]

[Event "Titled Tuesday Blitz May 2 Early 2023"]
[White "Jeet, Jain"]
[Black "Pranesh M"]
[WhiteFideId "5073022"]
[BlackFideId "35028600"]
[WhiteElo "2067"]
[BlackElo "2437"]
[Result "1-0"]
[Round "02"]
[TimeControl "180+2"]
[Date "2023.05.02"]
[WhiteClock "0:02:19"]
[BlackClock "0:02:30"]

1. Nf3 {[%clk 0:03:00]}  Nf6 {[%clk 0:03:00]} 2. g3 {[%clk 0:03:00]}  d5 {[%clk 0:03:00]} 3. d3 {[%clk 0:03:00]}  Bf5 {[%clk 0:03:01]} 4. Bg2 {[%clk 0:03:00]}  e6 {[%clk 0:03:01]} 5. O-O {[%clk 0:03:01]}  h6 {[%clk 0:03:01]} 6. b3 {[%clk 0:03:01]}  Nbd7 {[%clk 0:03:01]} 7. Bb2 {[%clk 0:03:01]}  Bd6 {[%clk 0:03:01]} 8. Nbd2 {[%clk 0:03:02]}  O-O {[%clk 0:03:01]} 9. Re1 {[%clk 0:03:02]}  Bh7 {[%clk 0:03:02]} 10. e4 {[%clk 0:03:03]}  dxe4 {[%clk 0:03:03]} 11. dxe4 {[%clk 0:03:03]}  Be7 {[%clk 0:03:02]} 12. e5 {[%clk 0:03:03]}  Nd5 {[%clk 0:03:02]} 13. a3 {[%clk 0:03:03]}  c5 {[%clk 0:03:02]} 14. c4 {[%clk 0:03:03]}  N5b6 {[%clk 0:03:00]} 15. Ne4 {[%clk 0:03:02]}  a5 {[%clk 0:02:58]} 16. a4 {[%clk 0:03:00]}  Nb8 {[%clk 0:02:58]} 17. Qe2 {[%clk 0:02:55]}  Nc6 {[%clk 0:02:58]} 18. Rad1 {[%clk 0:02:54]}  Qc7 {[%clk 0:02:59]} 19. Nd6 {[%clk 0:02:53]}  Nd7 {[%clk 0:02:59]} 20. Nb5 {[%clk 0:02:51]}  Qc8 {[%clk 0:02:58]} 21. Nd6 {[%clk 0:02:46]}  Qc7 {[%clk 0:02:58]} 22. Nb5 {[%clk 0:02:46]}  Qc8 {[%clk 0:02:58]} 23. Nd6 {[%clk 0:02:46]}  Qb8 {[%clk 0:02:59]} 24. Nxf7 {[%clk 0:02:45]}  Rxf7 {[%clk 0:02:58]} 25. Rxd7 {[%clk 0:02:44]}  Kh8 {[%clk 0:02:53]} 26. Bh3 {[%clk 0:02:42]}  Qc8 {[%clk 0:02:46]} 27. Bxe6 {[%clk 0:02:37]}  Bf5 {[%clk 0:02:40]} 28. Rxe7 {[%clk 0:02:28]}  Bxe6 {[%clk 0:02:38]} 29. Rxf7 {[%clk 0:02:29]}  Bxf7 {[%clk 0:02:38]} 30. e6 {[%clk 0:02:29]}  Bh5 {[%clk 0:02:38]} 31. Qe3 {[%clk 0:02:25]}  Qc7 {[%clk 0:02:32]} 32. Qxh6+ {[%clk 0:02:22]}  Kg8 {[%clk 0:02:30]} 33. Qxh5 {[%clk 0:02:22]}  Rf8 {[%clk 0:02:29]} 34. Ng5 {[%clk 0:02:19]}  Rf5 {[%clk 0:02:30]} 1-0


[Site "https://www.chess.com"]

[Event "Titled Tuesday Blitz May 2 Early 2023"]
[White "Swiercz, Dariusz"]
[Black "Suder, Jakub"]
[WhiteFideId "1126881"]
[BlackFideId "1195310"]
[WhiteElo "2620"]
[BlackElo "2287"]
[Result "1/2-1/2"]
[Round "02"]
[TimeControl "180+2"]
[Date "2023.05.02"]
[WhiteClock "0:00:00"]
[BlackClock "0:00:00"]

1. e4 {[%clk 0:00:01]}  c5 {[%clk 0:00:01]} 2. Nf3 {[%clk 0:00:01]}  e6 {[%clk 0:00:01]} 3. g3 {[%clk 0:00:01]}  Nc6 {[%clk 0:00:01]} 4. Bg2 {[%clk 0:00:01]}  Nf6 {[%clk 0:00:01]} 5. d3 {[%clk 0:00:01]}  d5 {[%clk 0:00:01]} 6. Nbd2 {[%clk 0:00:01]}  Be7 {[%clk 0:00:01]} 7. O-O {[%clk 0:00:01]}  b6 {[%clk 0:00:01]} 8. Re1 {[%clk 0:00:01]}  Bb7 {[%clk 0:00:01]} 9. c3 {[%clk 0:00:01]}  Qc7 {[%clk 0:00:01]} 10. a3 {[%clk 0:00:01]}  h6 {[%clk 0:00:01]} 11. Qe2 {[%clk 0:00:01]}  dxe4 {[%clk 0:00:01]} 12. dxe4 {[%clk 0:00:01]}  Rd8 {[%clk 0:00:01]} 13. e5 {[%clk 0:00:01]}  Nd7 {[%clk 0:00:01]} 14. a4 {[%clk 0:00:01]}  Ndb8 {[%clk 0:00:01]} 15. Nc4 {[%clk 0:00:01]}  Ba6 {[%clk 0:00:01]} 16. Qe4 {[%clk 0:00:01]}  Bb7 {[%clk 0:00:01]} 17. Qc2 {[%clk 0:00:01]}  Ba6 {[%clk 0:00:01]} 18. Nfd2 {[%clk 0:00:01]}  Nd7 {[%clk 0:00:01]} 19. Qe4 {[%clk 0:00:01]}  Bb7 {[%clk 0:00:01]} 20. Qe3 {[%clk 0:00:00]}  Bg5 {[%clk 0:00:01]} 21. f4 {[%clk 0:00:00]}  Be7 {[%clk 0:00:01]} 22. Ne4 {[%clk 0:00:00]}  O-O {[%clk 0:00:01]} 23. Ned6 {[%clk 0:00:00]}  Ba8 {[%clk 0:00:01]} 24. Qe2 {[%clk 0:00:00]}  Bxd6 {[%clk 0:00:01]} 25. Nxd6 {[%clk 0:00:00]}  Na5 {[%clk 0:00:01]} 26. Bxa8 {[%clk 0:00:00]}  Rxa8 {[%clk 0:00:01]} 27. Be3 {[%clk 0:00:00]}  Rad8 {[%clk 0:00:01]} 28. Rad1 {[%clk 0:00:00]}  Nb7 {[%clk 0:00:01]} 29. Qf3 {[%clk 0:00:00]}  Nxd6 {[%clk 0:00:01]} 30. Rxd6 {[%clk 0:00:00]}  Nb8 {[%clk 0:00:01]} 31. Red1 {[%clk 0:00:00]}  Rxd6 {[%clk 0:00:01]} 32. Rxd6 {[%clk 0:00:00]}  Rd8 {[%clk 0:00:01]} 33. Rxd8+ {[%clk 0:00:00]}  Qxd8 {[%clk 0:00:01]} 34. Qb7 {[%clk 0:00:00]}  Qd1+ {[%clk 0:00:00]} 35. Kf2 {[%clk 0:00:00]}  Nd7 {[%clk 0:00:00]} 36. Qxa7 {[%clk 0:00:00]}  Qc2+ {[%clk 0:00:00]} 37. Kf3 {[%clk 0:00:00]}  Qd1+ {[%clk 0:00:00]} 38. Kf2 {[%clk 0:00:00]}  Qc2+ {[%clk 0:00:00]} 39. Kf3 {[%clk 0:00:00]}  Qd1+ {[%clk 0:00:00]} 40. Kf2 {[%clk 0:00:00]} 1/2-1/2


[Site "https://www.chess.com"]